fUSD/lending_fUSD_20260401
["ID","MTS","AMOUNT","RATE_DAILY","PERIOD"]
[419243310,1775036623700,154.0,6.356e-05,2]
[419243311,1775036623928,154.0,6.356e-05,2]
[419243312,1775036624146,154.0,6.356e-05,2]
[419243313,1775036624388,154.0,6.356e-05,2]
[419243314,1775036624618,154.0,6.356e-05,2]
[419243315,1775036624844,154.0,6.356e-05,2]
[419243316,1775036625050,154.0,6.356e-05,2]
[419243317,1775036625273,154.0,6.356e-05,2]
[419243318,1775036625497,154.0,6.356e-05,2]
[419243319,1775036625746,154.0,6.356e-05,2]
[419243320,1775036626010,154.0,6.356e-05,2]
[419243321,1775036626215,154.0,6.356e-05,2]
[419243322,1775036626442,154.0,6.356e-05,2]
[419243323,1775036627659,154.0,6.356e-05,2]
[419243324,1775036679204,1300.0,6.214e-05,2]
[419243325,1775036679750,891.89,6.772e-05,2]
[419243326,1775036680265,1184.65,7.359e-05,2]
[419243332,1775036802935,1310.0,7.121e-05,2]
[419243333,1775036803451,700.0,7.778e-05,2]
[419243335,1775036868853,1600.0,7.324e-05,2]
[419243336,1775036883496,151.93152808,7.121e-05,2]
[419243338,1775036994165,857.13,6.659e-05,2]
[419243343,1775037031999,-1300.0,8.016e-05,2]
[419243344,1775037032009,-265.0,8.016e-05,2]
[419243345,1775037032019,-250.0,8.08e-05,2]
[419243346,1775037032028,-950.0,8.08e-05,2]
[419243347,1775037032038,-896.0,8.103e-05,2]
[419243348,1775037032047,-8139.00053215,8.103e-05,2]
[419243349,1775037032071,-5110.90562854,8.103e-05,2]
[419243350,1775037032081,-300.0,8.104e-05,2]
[419243351,1775037032091,-480.0,8.104e-05,2]
[419243352,1775037032100,-1074.99402984,8.105e-05,2]
[419243353,1775037032109,-4142.96185438,8.105e-05,2]
[419243354,1775037032119,-9699.515824,8.178e-05,2]
[419243355,1775037032128,-150.0,8.4e-05,2]
[419243356,1775037032138,-2260.0,8.429e-05,2]
[419243357,1775037032147,-911.4,8.443e-05,2]
[419243358,1775037032157,-200.0,8.466e-05,2]
[419243359,1775037032166,-479.52,8.511e-05,2]
[419243360,1775037032176,-366.59,8.541e-05,2]
[419243361,1775037032185,-1500.0,8.552e-05,2]
[419243362,1775037032194,-275.0,8.573e-05,2]
[419243363,1775037032204,-335.96,8.594e-05,2]
[419243364,1775037032213,-500.0,8.625e-05,2]
[419243365,1775037032224,-856.32,8.626e-05,2]
[419243366,1775037032235,-802.31,8.654e-05,2]
[419243367,1775037032245,-1040.0,8.665e-05,2]
[419243368,1775037032255,-220.0,8.673e-05,2]
[419243369,1775037032264,-150.0,8.673e-05,2]
[419243370,1775037032274,-700.0,8.787e-05,2]
[419243371,1775037032284,-1405.0,8.797e-05,2]
[419243372,1775037032294,-1736.0,8.8e-05,2]
[419243373,1775037032304,-5000.0,8.817e-05,2]
[419243374,1775037032313,-5000.0,8.817e-05,2]
[419243375,1775037032323,-719.0,8.832e-05,2]
[419243376,1775037032333,-712.0,8.849e-05,2]
[419243377,1775037032342,-150.99,8.864e-05,2]
[419243378,1775037032352,-9999.99,8.864e-05,2]
[419243379,1775037032361,-150.99,8.864e-05,2]
[419243380,1775037032371,-299.99,8.864e-05,2]
[419243381,1775037032381,-500.0,8.864e-05,2]
[419243382,1775037032391,-235.20456477,8.875e-05,2]
[419243383,1775037032401,-1666.0,8.876e-05,2]
[419243384,1775037032412,-1000.0,8.881e-05,2]
[419243385,1775037032423,-1600.0,8.882e-05,2]
[419243386,1775037032433,-5000.0,8.888e-05,2]
[419243387,1775037032442,-250.0,8.888e-05,2]
[419243388,1775037032451,-5000.0,8.888e-05,2]
[419243389,1775037032461,-526.39307922,8.888e-05,2]
[419243390,1775037032471,-250.0,8.888e-05,2]
[419243391,1775037032481,-2000.0,8.926e-05,2]
[419243392,1775037032491,-339.42,8.926e-05,2]
[419243393,1775037032500,-535.71,8.936e-05,2]
[419243394,1775037032510,-500.0,8.997e-05,2]
[419243395,1775037032520,-1231.89,8.997e-05,2]
[419243396,1775037032529,-366.59,9.016e-05,2]
[419243397,1775037032539,-1811.14,9.161e-05,2]
[419243398,1775037032549,-4253.15,9.177e-05,2]
[419243399,1775037032559,-406.76,9.219e-05,2]
[419243400,1775037032569,-403.55,9.251e-05,2]
[419243401,1775037032579,-500.0,9.271e-05,2]
[419243402,1775037032588,-1060.88,9.385e-05,2]
[419243403,1775037032598,-571.43,9.423e-05,2]
[419243404,1775037032608,-2030.24,9.49e-05,2]
[419243405,1775037032618,-366.59,9.49e-05,2]
[419243406,1775037032628,-565.27,9.63e-05,2]
[419243407,1775037032638,-1605.91,9.661e-05,2]
[419243408,1775037032648,-191.9886,9.8e-05,7]
[419243409,1775037032659,-366.59,9.965e-05,2]
[419243410,1775037032669,-1600.0,9.993e-05,2]
[419243411,1775037032680,-2000.0,0.00010041,2]
[419243412,1775037032691,-366.59,0.00010439,2]
[419243413,1775037032701,-151.0,0.00010496,2]
[419243414,1775037032711,-151.0,0.00010502,2]
[419243415,1775037032721,-151.0,0.00010509,2]
[419243416,1775037032731,-250.0,0.00010592,2]
[419243417,1775037032741,-500.0,0.00010687,2]
[419243418,1775037032750,-500.0,0.00010873,2]
[419243419,1775037032760,-500.0,0.00010873,2]
[419243420,1775037032770,-500.0,0.00010873,2]
[419243421,1775037032780,-366.59,0.00010914,2]
[419243422,1775037032790,-7112.46447299,0.00011099,2]
[419243423,1775037032799,-1600.0,0.00011103,2]
[419243424,1775037032809,-2000.0,0.00011157,2]
[419243425,1775037032818,-1000.0,0.00011235,2]
[419243426,1775037032827,-245.731,0.000113,12]
[419243427,1775037032837,-366.59,0.00011389,2]
[419243428,1775037032846,-500.0,0.00011421,2]
[419243429,1775037032857,-1000.0,0.00011421,2]
[419243430,1775037032867,-436.02,0.00011649,2]
[419243431,1775037032876,-32842.583,0.0001165,2]
[419243432,1775037032887,-5328.6287,0.0001165,2]
[419243433,1775037032897,-2500.0,0.0001165,2]
[419243434,1775037032907,-2086.63901,0.00011656,2]
[419243435,1775037032917,-500.0,0.00011673,2]
[419243436,1775037032927,-500.0,0.00011749,2]
[419243437,1775037032936,-500.0,0.00011749,2]
[419243438,1775037032946,-592.80585715,0.00011749,2]
[419243439,1775037032956,-588.38812981,0.00011749,2]
[419243440,1775037032965,-150.0,0.00011749,2]
[419243441,1775037032975,-150.0,0.00011749,2]
[419243442,1775037032984,-150.0,0.00011749,2]
[419243443,1775037032994,-150.0,0.00011749,2]
[419243444,1775037033004,-150.0,0.00011749,2]
[419243445,1775037033014,-150.0,0.00011749,2]
[419243446,1775037033024,-28095.30767723,0.0001175,2]
[419243447,1775037033037,-6513.11906943,0.0001175,2]
[419243451,1775037037665,-500.0,9.971e-05,2]
[419243452,1775037037675,-500.0,9.971e-05,2]
[419243453,1775037037685,-500.0,9.971e-05,2]
[419243454,1775037037694,-537.00774431,9.971e-05,2]
[419243455,1775037037704,-583.62965961,9.971e-05,2]
[419243456,1775037037713,-500.0,9.971e-05,2]
[419243457,1775037037723,-500.0,9.971e-05,2]
[419243458,1775037037732,-500.0,9.971e-05,2]
[419243459,1775037037742,-500.0,9.971e-05,2]
[419243460,1775037037752,-500.0,9.971e-05,2]
[419243461,1775037037761,-366.0197025,9.971e-05,2]
[419243462,1775037037771,-500.0,9.971e-05,2]
[419243463,1775037037780,-500.0,9.971e-05,2]
[419243464,1775037037790,-500.0,9.971e-05,2]
[419243465,1775037037799,-500.0,9.971e-05,2]
[419243466,1775037037808,-500.0,9.971e-05,2]
[419243467,1775037037818,-500.0,9.971e-05,2]
[419243468,1775037037827,-500.0,9.971e-05,2]
[419243469,1775037037837,-500.0,9.971e-05,2]
[419243470,1775037037847,-500.0,9.971e-05,2]
[419243471,1775037037857,-500.0,9.971e-05,2]
[419243472,1775037037869,-500.0,9.971e-05,2]
[419243473,1775037037879,-500.0,9.971e-05,2]
[419243474,1775037037888,-500.0,9.971e-05,2]
[419243475,1775037037898,-500.0,9.971e-05,2]
[419243476,1775037037907,-500.0,9.971e-05,2]
[419243477,1775037037917,-500.0,9.971e-05,2]
[419243478,1775037037926,-500.0,9.971e-05,2]
[419243479,1775037037935,-500.0,9.971e-05,2]
[419243480,1775037037944,-500.0,9.971e-05,2]
[419243481,1775037037954,-500.0,9.971e-05,2]
[419243482,1775037037963,-500.0,9.971e-05,2]
[419243483,1775037037972,-500.0,9.971e-05,2]
[419243484,1775037037982,-500.0,9.971e-05,2]
[419243485,1775037037991,-500.0,9.971e-05,2]
[419243486,1775037038000,-500.0,9.971e-05,2]
[419243487,1775037038010,-500.0,9.971e-05,2]
[419243488,1775037038019,-500.0,9.971e-05,2]
[419243489,1775037038029,-500.0,9.971e-05,2]
[419243490,1775037038038,-500.0,9.971e-05,2]
[419243491,1775037038048,-500.0,9.971e-05,2]
[419243492,1775037038058,-500.0,9.971e-05,2]
[419243493,1775037038068,-500.0,9.971e-05,2]
[419243494,1775037038078,-500.0,9.971e-05,2]
[419243495,1775037038087,-500.0,9.971e-05,2]
[419243497,1775037038097,-500.0,9.971e-05,2]
[419243499,1775037038106,-500.0,9.971e-05,2]
[419243501,1775037038114,-500.0,9.971e-05,2]
[419243503,1775037038124,-500.0,9.971e-05,2]
[419243505,1775037038133,-500.0,9.971e-05,2]
[419243507,1775037038142,-554.36397568,9.971e-05,2]
[419243509,1775037038151,-227314.07729498,0.0001175,2]
[419243512,1775037038172,-520.3063871,0.0001175,2]
[419243520,1775037038336,-766.39805676,0.0001175,2]
[419243521,1775037038347,-1111.6956559,0.0001175,2]
[419243525,1775037040502,-432.73478059,9.971e-05,2]
[419243526,1775037040610,-67.26521941,9.971e-05,2]
[419243527,1775037040620,-500.0,9.971e-05,2]
[419243528,1775037040630,-500.0,9.971e-05,2]
[419243529,1775037040640,-193425.7857167,0.0001175,2]
[419243530,1775037040650,-8062.50179555,0.00011763,2]
[419243531,1775037040660,-1000.0,0.00011783,2]
[419243533,1775037040669,-181.16,0.00011841,2]
[419243534,1775037040679,-366.59,0.00011863,2]
[419243535,1775037040689,-168.26,0.00011896,2]
[419243536,1775037040699,-436.02,0.00011923,2]
[419243537,1775037040708,-1000.0,0.00011969,2]
[419243538,1775037040718,-7112.46447297,0.00012159,2]
[419243539,1775037040728,-436.02,0.00012197,2]
[419243540,1775037040739,-1600.0,0.00012213,2]
[419243541,1775037040749,-500.0,0.00012221,2]
[419243542,1775037040759,-2000.0,0.00012273,2]
[419243543,1775037040769,-366.59,0.00012338,2]
[419243544,1775037040779,-436.02,0.00012471,2]
[419243545,1775037040788,-314.5171,0.000127,17]
[419243546,1775037040797,-436.06,0.00012745,2]
[419243547,1775037040806,-366.59,0.00012812,2]
[419243548,1775037040816,-2086.63901,0.00012903,2]
[419243549,1775037040825,-160.0,0.00013094,2]
[419243550,1775037040834,-180.384187,0.00013094,2]
[419243551,1775037040844,-200.768374,0.00013094,2]
[419243552,1775037040853,-173.824763,0.00013094,2]
[419243553,1775037040862,-160.0,0.00013094,2]
[419243554,1775037040872,-453.981055,0.00013094,2]
[419243555,1775037040883,-747.962111,0.00013094,2]
[419243556,1775037040893,-505.0,0.00013111,2]
[419243557,1775037040903,-1642.93683063,0.00013288,2]
[419243558,1775037040912,-1600.0,0.00013323,2]
[419243559,1775037040922,-457746.6898581,0.00013362,2]
[419243560,1775037040932,-2000.0,0.00013388,2]
[419243561,1775037040942,-269.04475954,0.00013689,2]
[419243562,1775037040951,-16362.27,0.00013699,2]
[419243563,1775037040962,-224.28659877,0.00013699,2]
[419243564,1775037040972,-358.49657185,0.00013699,2]
[419243565,1775037040982,-500.0,0.00013699,2]
[419243566,1775037040991,-500.0,0.00013699,2]
[419243567,1775037041000,-500.41125099,0.00013699,2]
[419243568,1775037041010,-500.0,0.00013699,2]
[419243569,1775037041019,-500.0,0.00013699,2]
[419243570,1775037041028,-500.0,0.00013699,2]
[419243571,1775037041038,-500.0,0.00013699,2]
[419243572,1775037041050,-500.0,0.00013699,2]
[419243573,1775037041061,-500.0,0.00013699,2]
[419243574,1775037041070,-500.0,0.00013699,2]
[419243575,1775037041079,-536.9866911,0.00013699,2]
[419243576,1775037041088,-500.0,0.00013699,2]
[419243577,1775037041098,-500.0,0.00013699,2]
[419243578,1775037041110,-342.86927072,0.00013699,2]
[419243579,1775037041120,-500.0,0.00013699,2]
[419243580,1775037041130,-500.0,0.00013699,2]
[419243581,1775037041139,-330.62596809,0.00013699,2]
[419243582,1775037041149,-500.0,0.00013699,2]
[419243583,1775037041158,-500.0,0.00013699,2]
[419243584,1775037041167,-509.88873086,0.00013699,2]
[419243585,1775037041176,-500.0,0.00013699,2]
[419243586,1775037041185,-312.57026801,0.00013699,2]
[419243587,1775037041195,-500.0,0.00013699,2]
[419243588,1775037041205,-500.0,0.00013699,2]
[419243589,1775037041214,-581.59764904,0.00013699,2]
[419243590,1775037041224,-245.978436,0.00013749,7]
[419243591,1775037041235,-619.065076,0.00013749,7]
[419243592,1775037041244,-2086.63901,0.0001415,2]
[419243593,1775037041253,-402.5582,0.000142,22]
[419243594,1775037041264,-3911.52,0.00014213,2]
[419243595,1775037041273,-1000.0,0.00014247,2]
[419243596,1775037041283,-1000.0,0.00014247,2]
[419243597,1775037041292,-367.40868416,0.00014247,2]
[419243598,1775037041301,-1000.0,0.00014247,2]
[419243599,1775037041310,-298.21038318,0.00014247,2]
[419243600,1775037041319,-7112.46447297,0.00014376,2]
[419243601,1775037041328,-170.03,0.00014384,2]
[419243602,1775037041338,-495.62,0.00014385,2]
[419243603,1775037041347,-495.62,0.00014659,2]
[419243604,1775037041356,-1500.0,0.00014795,2]
[419243605,1775037041365,-1579.04808524,0.00014795,2]
[419243606,1775037041375,-1500.0,0.00014795,2]
[419243607,1775037041385,-168.27,0.0001487,2]
[419243608,1775037041396,-492.22844564,0.000149,2]
[419243609,1775037041406,-6129.07395549,0.000149,2]
[419243610,1775037041416,-495.62,0.00014933,2]
[419243611,1775037041425,-116248.17917387,0.00014973,2]
[419243622,1775037042972,-1719.5324,0.00014973,2]
[419243623,1775037043133,-1131.9414888,0.00014973,2]
[419243624,1775037043188,-700.774621,0.00014973,2]
[419243633,1775037046395,-277.06755559,0.00014973,2]
[419243634,1775037046407,-5878.40577931,0.00014973,2]
[419243635,1775037046418,-808.17431364,0.00014973,2]
[419243636,1775037046522,-615.6359374,0.00014973,2]
[419244197,1775037905409,-273.0,8.62e-05,2]
[419244198,1775037905434,-1200.0,8.62e-05,2]
[419244199,1775037905463,-300.0,8.62e-05,2]
[419244200,1775037905487,-5000.0,8.621e-05,2]
[419244201,1775037905510,-250.0,8.621e-05,2]
[419244202,1775037905535,-150.0,8.621e-05,2]
[419244203,1775037905559,-150.0,8.621e-05,2]
[419244204,1775037905585,-992.23,8.621e-05,2]
[419244205,1775037905608,-283.6213,8.621e-05,2]
[419244206,1775037905630,-250.0,8.682e-05,2]
[419244207,1775037905654,-18232.1,8.926e-05,2]
[419244208,1775037905677,-500.0,8.926e-05,2]
[419244209,1775037905699,-193.0,9.481e-05,2]
[419244210,1775037905721,-259.0,9.481e-05,2]
[419244211,1775037905747,-1680.0,9.481e-05,2]
[419244212,1775037905769,-5000.0,9.482e-05,2]
[419244213,1775037905792,-250.0,9.482e-05,2]
[419244214,1775037905815,-5000.0,9.482e-05,2]
[419244215,1775037905838,-170.23,0.00010334,2]
[419244216,1775037905861,-150.99,0.00010475,2]
[419244217,1775037905883,-9999.99,0.00010475,2]
[419244218,1775037905907,-150.0,0.000109,2]
[419244219,1775037905928,-500.0,0.00011443,2]
[419244220,1775037905951,-200.0,0.00011443,2]
[419244221,1775037905972,-216.6270075,0.00011443,2]
[419244222,1775037905994,-500.0,0.00011443,2]
[419244223,1775037906470,-500.0,0.00011443,2]
[419244224,1775037906492,-500.0,0.00011443,2]
[419244225,1775037906513,-500.0,0.00011443,2]
[419244226,1775037906534,-500.0,0.00011443,2]
[419244227,1775037906556,-500.0,0.00011443,2]
[419244228,1775037906576,-500.0,0.00011443,2]
[419244229,1775037906597,-500.0,0.00011443,2]
[419244230,1775037906618,-500.0,0.00011443,2]
[419244231,1775037906640,-500.0,0.00011443,2]
[419244232,1775037906661,-500.0,0.00011443,2]
[419244233,1775037906682,-500.0,0.00011443,2]
[419244234,1775037906704,-500.0,0.00011443,2]
[419244235,1775037906725,-500.0,0.00011443,2]
[419244236,1775037906749,-500.0,0.00011443,2]
[419244237,1775037906772,-500.0,0.00011443,2]
[419244238,1775037906794,-500.0,0.00011443,2]
[419244239,1775037906816,-500.0,0.00011443,2]
[419244240,1775037906839,-500.0,0.00011443,2]
[419244241,1775037906860,-500.0,0.00011443,2]
[419244242,1775037906882,-500.0,0.00011443,2]
[419244243,1775037906920,-500.0,0.00011443,2]
[419244244,1775037906945,-500.0,0.00011443,2]
[419244245,1775037906969,-500.0,0.00011443,2]
[419244246,1775037906991,-500.0,0.00011443,2]
[419244247,1775037907013,-500.0,0.00011443,2]
[419244248,1775037907036,-151.0,0.00011443,2]
[419244249,1775037907060,-151.0,0.00011443,2]
[419244250,1775037907083,-151.0,0.00011443,2]
[419244251,1775037907107,-151.0,0.00011443,2]
[419244252,1775037907130,-151.0,0.00011443,2]
[419244253,1775037907153,-151.0,0.00011443,2]
[419244254,1775037907177,-151.0,0.00011443,2]
[419244255,1775037907202,-151.0,0.00011443,2]
[419244256,1775037907224,-151.0,0.00011443,2]
[419244257,1775037907247,-151.0,0.00011443,2]
[419244258,1775037907270,-151.0,0.00011443,2]
[419244259,1775037907297,-151.0,0.00011443,2]
[419244260,1775037907320,-151.0,0.00011443,2]
[419244261,1775037907342,-151.0,0.00011443,2]
[419244262,1775037907369,-500.0,0.00011443,2]
[419244263,1775037907393,-1000.0,0.00011449,2]
[419244264,1775037907416,-500.0,0.00011449,2]
[419244265,1775037907438,-500.0,0.00011449,2]
[419244266,1775037907461,-337.44530492,0.00011449,2]
[419244267,1775037907483,-540.41442032,0.00011449,2]
[419244268,1775037907510,-519.91472452,0.00011449,2]
[419244269,1775037907535,-397.43724274,0.00011449,2]
[419244270,1775037938862,-278.0,8.926e-05,2]
[419244280,1775038233396,-250.0,9.819e-05,2]
[419244281,1775038233408,-258.61,9.819e-05,2]
[419244282,1775038233448,-32.39,9.819e-05,2]
[419244283,1775038233460,-250.0,0.00010185,2]
[419244284,1775038233470,-250.0,0.00010942,2]
[419244285,1775038233483,-150.0,0.00010959,2]
[419244286,1775038233493,-1834.79777926,0.00011,2]
[419244287,1775038233507,-4032.86165866,0.00011,2]
[419244288,1775038233518,-300.0,0.00011408,2]
[419244289,1775038233529,-1640.63533865,0.00011409,2]
[419244293,1775038238235,-3731.8588095,0.00011409,2]
[419244294,1775038238264,-13227.21451965,0.00011409,2]
[419244295,1775038238276,-5205.6289051,0.00011409,2]
[419244296,1775038238285,-11877.09657525,0.00011409,2]
[419244297,1775038238304,-1800.0,0.00011409,2]
[419244298,1775038238335,-387.85191081,0.00011409,2]
[419244308,1775038240156,-192754.24402444,0.00011409,2]
[419244309,1775038240165,-500.0,0.00011443,2]
[419244310,1775038240174,-500.0,0.00011443,2]
[419244311,1775038240183,-500.0,0.00011443,2]
[419244312,1775038240192,-500.0,0.00011443,2]
[419244313,1775038240201,-500.0,0.00011443,2]
[419244314,1775038240210,-500.0,0.00011443,2]
[419244315,1775038240220,-500.0,0.00011443,2]
[419244316,1775038240230,-500.0,0.00011443,2]
[419244317,1775038240239,-500.0,0.00011443,2]
[419244318,1775038240248,-200.0,0.00011443,2]
[419244319,1775038240257,-500.0,0.00011443,2]
[419244320,1775038240266,-500.0,0.00011443,2]
[419244321,1775038240275,-500.0,0.00011443,2]
[419244322,1775038240285,-500.0,0.00011443,2]
[419244323,1775038240294,-500.0,0.00011443,2]
[419244324,1775038240303,-500.0,0.00011443,2]
[419244325,1775038240312,-500.0,0.00011443,2]
[419244326,1775038240321,-500.0,0.00011443,2]
[419244327,1775038240331,-500.0,0.00011443,2]
[419244328,1775038240340,-500.0,0.00011443,2]
[419244329,1775038240349,-500.0,0.00011443,2]
[419244330,1775038240358,-500.0,0.00011443,2]
[419244331,1775038240367,-500.0,0.00011443,2]
[419244332,1775038240377,-500.0,0.00011443,2]
[419244333,1775038240390,-500.0,0.00011443,2]
[419244334,1775038240400,-500.0,0.00011443,2]
[419244335,1775038240409,-500.0,0.00011443,2]
[419244336,1775038240419,-151.0,0.00011443,2]
[419244337,1775038240428,-500.0,0.00011443,2]
[419244338,1775038240438,-151.0,0.00011443,2]
[419244339,1775038240447,-151.0,0.00011443,2]
[419244340,1775038240456,-151.0,0.00011443,2]
[419244341,1775038240465,-151.0,0.00011443,2]
[419244342,1775038240475,-151.0,0.00011443,2]
[419244343,1775038240484,-151.0,0.00011443,2]
[419244344,1775038240493,-151.0,0.00011443,2]
[419244345,1775038240503,-151.0,0.00011443,2]
[419244346,1775038240512,-151.0,0.00011443,2]
[419244347,1775038240521,-151.0,0.00011443,2]
[419244348,1775038240530,-151.0,0.00011443,2]
[419244349,1775038240540,-151.0,0.00011443,2]
[419244350,1775038240550,-151.0,0.00011443,2]
[419244351,1775038240559,-30357.709,0.0001145,2]
[419244352,1775038240569,-500.0,0.00011473,2]
[419244353,1775038240579,-500.0,0.00011616,2]
[419244354,1775038240588,-200.0,0.00011991,2]
[419244355,1775038240597,-1000.0,0.00012021,2]
[419244356,1775038240606,-500.0,0.0001211,2]
[419244357,1775038240616,-420.0,0.00012531,2]
[419244358,1775038240625,-150.0,0.000126,2]
[419244359,1775038240634,-8435.23,0.00012656,2]
[419244360,1775038240643,-250.0,0.00012974,2]
[419244361,1775038240653,-250.0,0.00013,2]
[419244362,1775038240662,-505.0,0.00013111,2]
[419244363,1775038240671,-505.0,0.00013111,2]
[419244364,1775038240680,-232671.5915743,0.00013318,2]
[419244365,1775038240690,-5856.3325182,0.0001333,2]
[419244366,1775038240699,-20924.6722513,0.00013394,2]
[419244367,1775038240709,-500.0,0.00013452,2]
[419244368,1775038240718,-90684.0,0.000135,2]
[419244369,1775038240728,-166.66,0.00013699,2]
[419244370,1775038240737,-1908.72,0.00013699,2]
[419244371,1775038240746,-200.0,0.00013699,2]
[419244372,1775038240756,-500.37557038,0.00013699,2]
[419244373,1775038240765,-342.86927072,0.00013699,2]
[419244374,1775038240774,-500.0,0.00013699,2]
[419244375,1775038240783,-500.0,0.00013699,2]
[419244376,1775038240792,-500.0,0.00013699,2]
[419244377,1775038240801,-500.0,0.00013699,2]
[419244378,1775038240810,-500.0,0.00013699,2]
[419244379,1775038240819,-500.0,0.00013699,2]
[419244380,1775038240828,-500.0,0.00013699,2]
[419244381,1775038240837,-312.57026801,0.00013699,2]
[419244382,1775038240847,-509.88873086,0.00013699,2]
[419244383,1775038240856,-785.2,0.00013699,2]
[419244384,1775038240866,-170.03,0.00013699,2]
[419244385,1775038240875,-260.2,0.00013766,2]
[419244386,1775038240885,-166.66,0.00013836,2]
[419244387,1775038240894,-192.1833,0.000139,7]
[419244388,1775038240904,-166.66,0.00013973,2]
[419244389,1775038240913,-785.2,0.00013973,2]
[419244390,1775038240922,-166.66,0.0001411,2]
[419244391,1775038240931,-500.0,0.00014173,2]
[419244392,1775038240941,-500.0,0.00014173,2]
[419244393,1775038240950,-500.0,0.00014173,2]
[419244394,1775038240960,-500.0,0.00014182,2]
[419244395,1775038240969,-152.5578191,0.00014182,2]
[419244396,1775038240979,-166.66,0.00014247,2]
[419244397,1775038240989,-367.40868416,0.00014247,2]
[419244398,1775038240999,-298.21038318,0.00014247,2]
[419244399,1775038241009,-785.2,0.00014247,2]
[419244400,1775038241018,-166.66,0.00014384,2]
[419244401,1775038241028,-1908.72,0.00014384,2]
[419244402,1775038241038,-881.14,0.00014384,2]
[419244403,1775038241047,-5534.0,0.000144,3]
[419244404,1775038241057,-206.04,0.00014521,2]
[419244405,1775038241067,-500.0,0.00014573,2]
[419244406,1775038241076,-2500.0,0.00014608,2]
[419244407,1775038241085,-881.14,0.00014658,2]
[419244408,1775038241095,-8866.4603123,0.000147,2]
[419244409,1775038241105,-1000.0,0.00014708,2]
[419244410,1775038241114,-9760.09939235,0.00014708,2]
[419244411,1775038241123,-5000.0,0.00014773,2]
[419244412,1775038241133,-1000.0,0.000148,2]
[419244413,1775038241142,-1408.23156912,0.000148,2]
[419244414,1775038241152,-521.6597525,0.00014808,2]
[419244415,1775038241161,-128106.53871111,0.0001483,2]
[419244416,1775038241171,-492.22844564,0.00014832,2]
[419244417,1775038241180,-269.04475954,0.00014863,2]
[419244418,1775038241189,-500.0,0.00014873,2]
[419244419,1775038241200,-500.0,0.00014873,2]
[419244420,1775038241209,-500.0,0.00014873,2]
[419244421,1775038241218,-1500000.0,0.00014873,2]
[419244422,1775038241227,-353.11,0.00014932,2]
[419244423,1775038241237,-288.05924458,0.00014973,2]
[419244424,1775038241246,-200.0,0.00014973,2]
[419244425,1775038241256,-200.0,0.00014973,2]
[419244426,1775038241265,-241.55857684,0.00014973,2]
[419244427,1775038241275,-200.0,0.00014973,2]
[419244428,1775038241284,-1000.0,0.00014973,2]
[419244429,1775038241293,-1000.0,0.00014973,2]
[419244430,1775038241302,-881.28293299,0.00014973,2]
[419244431,1775038241312,-200.0,0.00014973,2]
[419244432,1775038241321,-500.0,0.00015,7]
[419244433,1775038241330,-500.0,0.00015,7]
[419244434,1775038241339,-500.0,0.00015,7]
[419244435,1775038241348,-500.0,0.00015,7]
[419244436,1775038241357,-500.0,0.00015,7]
[419244437,1775038241367,-300.0,0.00015,2]
[419244438,1775038241376,-160.0,0.00015,2]
[419244439,1775038241385,-258523.9906381,0.00015025,2]
[419244440,1775038241394,-6507.0361313,0.00015048,2]
[419244441,1775038241402,-1908.72,0.00015068,2]
[419244442,1775038241411,-225.0,0.00015068,2]